[Event "Late-Titled-Tuesday-Blitz-March-26-2024"]
[Site "Chess.com"]
[Date "2024.03.26"]
[Round "11"]
[White "Chesstiger64"]
[Black "TedBelanoff"]
[Result "1-0"]
[WhiteElo "2404"]
[BlackElo "2228"]
[TimeControl "180+1"]
[EndTime "16:00:35 PDT"]
[Termination "Chesstiger64 won by checkmate"]

1. d4 {[%clk 0:03:00.9]} 1... b5 {[%clk 0:02:56.9]} 2. e4 {[%clk 0:02:59.6]}
2... c6 {[%clk 0:02:56.8]} 3. f4 {[%clk 0:02:58.1]} 3... a6 {[%clk 0:02:56.2]}
4. Nf3 {[%clk 0:02:58.1]} 4... d5 {[%clk 0:02:56.3]} 5. Nbd2 {[%clk 0:02:55]}
5... Bg4 {[%clk 0:02:55.1]} 6. h3 {[%clk 0:02:54.2]} 6... Bxf3 {[%clk
0:02:55.1]} 7. Qxf3 {[%clk 0:02:50.4]} 7... dxe4 {[%clk 0:02:52]} 8. Nxe4 {[%clk
0:02:49.7]} 8... Qxd4 {[%clk 0:02:46.5]} 9. c3 {[%clk 0:02:49]} 9... Qb6 {[%clk
0:02:46.5]} 10. Be3 {[%clk 0:02:48.7]} 10... Qc7 {[%clk 0:02:46.5]} 11. O-O-O
{[%clk 0:02:44.4]} 11... e6 {[%clk 0:02:46.8]} 12. Bc5 {[%clk 0:02:41.8]} 12...
Nf6 {[%clk 0:02:46]} 13. Bxf8 {[%clk 0:02:40.7]} 13... Rxf8 {[%clk 0:02:45.9]}
14. Nxf6+ {[%clk 0:02:40.4]} 14... gxf6 {[%clk 0:02:46.2]} 15. g4 {[%clk
0:02:39.7]} 15... Nd7 {[%clk 0:02:45.5]} 16. Bg2 {[%clk 0:02:39.6]} 16... Rc8
{[%clk 0:02:44.3]} 17. Rd2 {[%clk 0:02:37.6]} 17... Nb6 {[%clk 0:02:44.1]} 18.
f5 {[%clk 0:02:29.3]} 18... Nc4 {[%clk 0:02:41.4]} 19. Rd4 {[%clk 0:02:20.6]}
19... e5 {[%clk 0:02:41.3]} 20. Rdd1 {[%clk 0:02:05.8]} 20... Qa5 {[%clk
0:02:40.8]} 21. Qxc6+ {[%clk 0:01:49.7]} 21... Rxc6 {[%clk 0:02:40.2]} 22. Bxc6+
{[%clk 0:01:49.9]} 22... Ke7 {[%clk 0:02:40.6]} 23. Rd7+ {[%clk 0:01:50]} 23...
Ke8 {[%clk 0:02:40.9]} 24. Rhd1 {[%clk 0:01:18.8]} 24... Qb6 {[%clk 0:02:09.2]}
25. Rd8+ {[%clk 0:01:13.4]} 25... Ke7 {[%clk 0:02:09.6]} 26. R1d7# {[%clk
0:01:13.2]} 1-0

[Event "Late-Titled-Tuesday-Blitz-March-26-2024"]
[Site "Chess.com"]
[Date "2024.03.26"]
[Round "11"]
[White "teresin05"]
[Black "MoldyTofu"]
[Result "1-0"]
[WhiteElo "2235"]
[BlackElo "2062"]
[TimeControl "180+1"]
[EndTime "16:01:03 PDT"]
[Termination "teresin05 won by resignation"]

1. e4 {[%clk 0:03:00.9]} 1... g6 {[%clk 0:02:58.3]} 2. d4 {[%clk 0:03:00.1]}
2... Bg7 {[%clk 0:02:58.9]} 3. Nc3 {[%clk 0:03:00.8]} 3... d6 {[%clk 0:02:59.2]}
4. f4 {[%clk 0:03:01.3]} 4... Nd7 {[%clk 0:02:58.2]} 5. Nf3 {[%clk 0:03:02]}
5... e6 {[%clk 0:02:55.8]} 6. Be3 {[%clk 0:03:02.6]} 6... Ne7 {[%clk 0:02:56.4]}
7. Qd2 {[%clk 0:03:03.2]} 7... O-O {[%clk 0:02:56.7]} 8. O-O-O {[%clk
0:03:03.8]} 8... f5 {[%clk 0:02:56.3]} 9. e5 {[%clk 0:03:03.4]} 9... d5 {[%clk
0:02:56]} 10. h3 {[%clk 0:03:00.2]} 10... a6 {[%clk 0:02:54.2]} 11. g4 {[%clk
0:02:59.8]} 11... b6 {[%clk 0:02:54.4]} 12. g5 {[%clk 0:02:57]} 12... c5 {[%clk
0:02:51.5]} 13. h4 {[%clk 0:02:56.7]} 13... Qc7 {[%clk 0:02:49.2]} 14. h5 {[%clk
0:02:56.4]} 14... Re8 {[%clk 0:02:44.3]} 15. hxg6 {[%clk 0:02:40.4]} 15... hxg6
{[%clk 0:02:45.2]} 16. Qh2 {[%clk 0:02:19.1]} 16... Kf7 {[%clk 0:02:43.5]} 17.
Nh4 {[%clk 0:02:10.4]} 17... Rh8 {[%clk 0:02:39.6]} 18. Be2 {[%clk 0:02:10.1]}
18... b5 {[%clk 0:02:36.8]} 19. dxc5 {[%clk 0:02:09.2]} 19... Nxc5 {[%clk
0:02:36]} 20. Qf2 {[%clk 0:02:07.8]} 20... Nd7 {[%clk 0:02:31.6]} 21. Nf3 {[%clk
0:02:06.7]} 21... Rxh1 {[%clk 0:02:27.9]} 22. Rxh1 {[%clk 0:02:07.6]} 22... b4
{[%clk 0:02:28]} 23. Nd1 {[%clk 0:02:05.5]} 23... Bb7 {[%clk 0:02:26.3]} 24. Nd4
{[%clk 0:01:49.6]} 24... Rc8 {[%clk 0:02:22.3]} 25. Rh7 {[%clk 0:01:44.4]} 25...
Nc5 {[%clk 0:02:20.4]} 26. Qh4 {[%clk 0:01:42.5]} 26... Rg8 {[%clk 0:02:10.2]}
27. Nf2 {[%clk 0:01:32.8]} 27... Nc6 {[%clk 0:02:03.3]} 28. Nxf5 {[%clk
0:01:20.8]} 28... Nb3+ {[%clk 0:01:46.3]} 29. axb3 {[%clk 0:01:19.9]} 29... gxf5
{[%clk 0:01:47.2]} 30. Qh5+ {[%clk 0:01:19]} 1-0

[Event "Late-Titled-Tuesday-Blitz-March-26-2024"]
[Site "Chess.com"]
[Date "2024.03.26"]
[Round "11"]
[White "ViIIagra"]
[Black "HajiyevKanan"]
[Result "1-0"]
[WhiteElo "2900"]
[BlackElo "2581"]
[TimeControl "180+1"]
[EndTime "16:01:35 PDT"]
[Termination "ViIIagra won by resignation"]

1. e4 {[%clk 0:02:56.5]} 1... c6 {[%clk 0:03:00.3]} 2. g3 {[%clk 0:02:54.9]}
2... d5 {[%clk 0:03:01.2]} 3. Bg2 {[%clk 0:02:55.5]} 3... dxe4 {[%clk
0:03:01.3]} 4. Bxe4 {[%clk 0:02:56.4]} 4... Nf6 {[%clk 0:03:01.9]} 5. Bg2 {[%clk
0:02:56.7]} 5... Bg4 {[%clk 0:03:02.3]} 6. Nf3 {[%clk 0:02:53.5]} 6... e5 {[%clk
0:02:59.8]} 7. h3 {[%clk 0:02:53.6]} 7... Bxf3 {[%clk 0:02:56.2]} 8. Qxf3 {[%clk
0:02:54.5]} 8... Bc5 {[%clk 0:02:53.4]} 9. O-O {[%clk 0:02:54.4]} 9... O-O
{[%clk 0:02:53.8]} 10. d3 {[%clk 0:02:55]} 10... Nbd7 {[%clk 0:02:53.7]} 11. Nc3
{[%clk 0:02:54.6]} 11... a5 {[%clk 0:02:48.1]} 12. Bd2 {[%clk 0:02:54.6]} 12...
a4 {[%clk 0:02:47.2]} 13. a3 {[%clk 0:02:54.4]} 13... Bd4 {[%clk 0:02:43]} 14.
Rae1 {[%clk 0:02:52]} 14... Qb6 {[%clk 0:02:41.5]} 15. Bc1 {[%clk 0:02:52.3]}
15... Rfe8 {[%clk 0:02:36.9]} 16. h4 {[%clk 0:02:45]} 16... h5 {[%clk
0:02:23.4]} 17. Bh3 {[%clk 0:02:42.9]} 17... g6 {[%clk 0:01:46.4]} 18. Kg2
{[%clk 0:02:40.4]} 18... Kg7 {[%clk 0:01:40.3]} 19. Re2 {[%clk 0:02:18.8]} 19...
Qc5 {[%clk 0:01:37.2]} 20. Ne4 {[%clk 0:01:56.1]} 20... Nxe4 {[%clk 0:01:33.3]}
21. Bxd7 {[%clk 0:01:54.3]} 21... Re7 {[%clk 0:01:24]} 22. dxe4 {[%clk
0:01:53.7]} 22... Rxd7 {[%clk 0:01:18]} 23. c3 {[%clk 0:01:54.2]} 23... Qc4
{[%clk 0:01:02.2]} 24. cxd4 {[%clk 0:01:51.3]} 24... exd4 {[%clk 0:01:02.4]} 25.
Bg5 {[%clk 0:01:46.3]} 25... d3 {[%clk 0:01:03]} 26. Qf6+ {[%clk 0:01:41.4]}
26... Kg8 {[%clk 0:01:03]} 27. Bh6 {[%clk 0:01:38.9]} 27... Qd4 {[%clk
0:01:03.2]} 28. e5 {[%clk 0:01:38.2]} 1-0

[Event "Late-Titled-Tuesday-Blitz-March-26-2024"]
[Site "Chess.com"]
[Date "2024.03.26"]
[Round "11"]
[White "alexrustemov"]
[Black "PepeCuenca"]
[Result "1-0"]
[WhiteElo "2914"]
[BlackElo "2741"]
[TimeControl "180+1"]
[EndTime "16:01:37 PDT"]
[Termination "alexrustemov won by resignation"]

1. d4 {[%clk 0:03:00.9]} 1... Nf6 {[%clk 0:03:00]} 2. c4 {[%clk 0:03:01.3]} 2...
g6 {[%clk 0:03:00.3]} 3. Nf3 {[%clk 0:03:01.7]} 3... Bg7 {[%clk 0:03:00.7]} 4.
g3 {[%clk 0:03:02.3]} 4... O-O {[%clk 0:03:01.2]} 5. Bg2 {[%clk 0:03:02.9]} 5...
d6 {[%clk 0:03:00.7]} 6. Nc3 {[%clk 0:03:03.3]} 6... c6 {[%clk 0:03:00.9]} 7.
O-O {[%clk 0:03:03.7]} 7... Qb6 {[%clk 0:03:01.6]} 8. h3 {[%clk 0:03:03]} 8...
Qa6 {[%clk 0:03:00.9]} 9. Nd2 {[%clk 0:03:01.3]} 9... e5 {[%clk 0:02:54.1]} 10.
d5 {[%clk 0:03:00.4]} 10... cxd5 {[%clk 0:02:48.4]} 11. cxd5 {[%clk 0:03:00.3]}
11... b5 {[%clk 0:02:28.3]} 12. a4 {[%clk 0:02:59.7]} 12... Bd7 {[%clk
0:02:27.8]} 13. b3 {[%clk 0:02:41.6]} 13... bxa4 {[%clk 0:02:11.4]} 14. Nc4
{[%clk 0:02:29.5]} 14... Ne8 {[%clk 0:01:56.8]} 15. Nxa4 {[%clk 0:02:25.3]}
15... Bxa4 {[%clk 0:01:50.4]} 16. Rxa4 {[%clk 0:02:24.8]} 16... Qb5 {[%clk
0:01:49.8]} 17. Ba3 {[%clk 0:02:20.9]} 17... Nd7 {[%clk 0:01:03]} 18. Nxd6
{[%clk 0:02:19]} 18... Nxd6 {[%clk 0:01:03.5]} 19. Bxd6 {[%clk 0:02:19.3]} 19...
Rfe8 {[%clk 0:01:01.7]} 20. Bc7 {[%clk 0:02:14.9]} 20... e4 {[%clk 0:00:52]} 21.
Rxe4 {[%clk 0:02:09.6]} 21... Rxe4 {[%clk 0:00:33.4]} 22. Bxe4 {[%clk
0:02:09.5]} 22... Nc5 {[%clk 0:00:34.1]} 23. Bc2 {[%clk 0:02:06.4]} 23... Qd7
{[%clk 0:00:32.1]} 24. d6 {[%clk 0:02:05.4]} 24... Qxh3 {[%clk 0:00:31.2]} 25.
Qd5 {[%clk 0:02:04.8]} 1-0

[Event "Late-Titled-Tuesday-Blitz-March-26-2024"]
[Site "Chess.com"]
[Date "2024.03.26"]
[Round "11"]
[White "dasatcu90"]
[Black "crazycheesecake"]
[Result "0-1"]
[WhiteElo "2188"]
[BlackElo "2119"]
[TimeControl "180+1"]
[EndTime "16:01:48 PDT"]
[Termination "crazycheesecake won by resignation"]

1. d4 {[%clk 0:03:00]} 1... d5 {[%clk 0:02:59.5]} 2. Nf3 {[%clk 0:02:57.2]} 2...
Nf6 {[%clk 0:02:59.2]} 3. e3 {[%clk 0:02:56.9]} 3... e6 {[%clk 0:02:58.3]} 4.
Bd3 {[%clk 0:02:57]} 4... c5 {[%clk 0:02:58.6]} 5. c3 {[%clk 0:02:57.2]} 5...
Be7 {[%clk 0:02:58.9]} 6. Nbd2 {[%clk 0:02:57.7]} 6... Nc6 {[%clk 0:02:57.1]} 7.
O-O {[%clk 0:02:58]} 7... O-O {[%clk 0:02:56.1]} 8. dxc5 {[%clk 0:02:58.6]} 8...
Bxc5 {[%clk 0:02:55.1]} 9. b4 {[%clk 0:02:59.2]} 9... Be7 {[%clk 0:02:54.8]} 10.
b5 {[%clk 0:02:59]} 10... Nb8 {[%clk 0:02:51.6]} 11. c4 {[%clk 0:02:58.3]} 11...
Nbd7 {[%clk 0:02:43.8]} 12. Bb2 {[%clk 0:02:47.2]} 12... Nc5 {[%clk 0:02:42.1]}
13. Be2 {[%clk 0:02:42]} 13... Nce4 {[%clk 0:02:25.9]} 14. cxd5 {[%clk 0:02:40]}
14... Qxd5 {[%clk 0:02:23.5]} 15. Bc4 {[%clk 0:02:33.1]} 15... Qh5 {[%clk
0:02:20.1]} 16. Nxe4 {[%clk 0:02:21.2]} 16... Nxe4 {[%clk 0:02:18.6]} 17. Be5
{[%clk 0:01:49.2]} 17... Rd8 {[%clk 0:02:05.4]} 18. Qc2 {[%clk 0:01:46.1]} 18...
Nd6 {[%clk 0:02:03]} 19. Be2 {[%clk 0:01:40.4]} 19... b6 {[%clk 0:01:59.1]} 20.
Qb2 {[%clk 0:01:29.2]} 20... f6 {[%clk 0:01:56.2]} 21. Nd4 {[%clk 0:01:26.2]}
21... Qxe5 {[%clk 0:01:54.5]} 22. Bf3 {[%clk 0:01:18.8]} 22... Bb7 {[%clk
0:01:52.6]} 23. Qb3 {[%clk 0:01:15.6]} 23... Bxf3 {[%clk 0:01:49.1]} 24. gxf3
{[%clk 0:01:08.9]} 24... Qd5 {[%clk 0:01:42]} 25. Nc6 {[%clk 0:01:04]} 25...
Qxb3 {[%clk 0:01:35.8]} 26. axb3 {[%clk 0:01:03.5]} 26... Rd7 {[%clk 0:01:36.1]}
27. Rfd1 {[%clk 0:01:02.7]} 27... Kf7 {[%clk 0:01:35.1]} 28. Nxe7 {[%clk
0:00:52.6]} 28... Kxe7 {[%clk 0:01:34.1]} 0-1

[Event "Late-Titled-Tuesday-Blitz-March-26-2024"]
[Site "Chess.com"]
[Date "2024.03.26"]
[Round "11"]
[White "Evandro_Barbosa"]
[Black "AryanTari"]
[Result "0-1"]
[WhiteElo "2650"]
[BlackElo "2966"]
[TimeControl "180+1"]
[EndTime "16:01:52 PDT"]
[Termination "AryanTari won by resignation"]

1. e4 {[%clk 0:03:00.9]} 1... e5 {[%clk 0:02:53.3]} 2. Nf3 {[%clk 0:03:00.7]}
2... Nc6 {[%clk 0:02:53.7]} 3. Bb5 {[%clk 0:03:00.3]} 3... Nge7 {[%clk
0:02:53.3]} 4. O-O {[%clk 0:02:59.7]} 4... Ng6 {[%clk 0:02:53.3]} 5. c3 {[%clk
0:02:58.9]} 5... d5 {[%clk 0:02:51.2]} 6. d3 {[%clk 0:02:54.2]} 6... Be7 {[%clk
0:02:50.6]} 7. Re1 {[%clk 0:02:51]} 7... O-O {[%clk 0:02:50.3]} 8. Nbd2 {[%clk
0:02:44.4]} 8... Be6 {[%clk 0:02:33.8]} 9. Nf1 {[%clk 0:02:42.5]} 9... f5 {[%clk
0:01:46.9]} 10. exd5 {[%clk 0:02:34.1]} 10... Bxd5 {[%clk 0:01:43]} 11. Ne3
{[%clk 0:02:28.1]} 11... Be6 {[%clk 0:01:35]} 12. Nc4 {[%clk 0:02:25]} 12... e4
{[%clk 0:01:27.2]} 13. dxe4 {[%clk 0:02:14.4]} 13... Qxd1 {[%clk 0:01:28.1]} 14.
Rxd1 {[%clk 0:02:13.8]} 14... fxe4 {[%clk 0:01:29]} 15. Ng5 {[%clk 0:02:07.7]}
15... Bxg5 {[%clk 0:01:14.6]} 16. Bxg5 {[%clk 0:02:07]} 16... Rf5 {[%clk
0:01:15.2]} 17. Bxc6 {[%clk 0:01:07]} 17... bxc6 {[%clk 0:01:16.1]} 18. Rd8+
{[%clk 0:01:00]} 18... Rxd8 {[%clk 0:01:15.1]} 19. Bxd8 {[%clk 0:01:00.9]} 19...
Bxc4 {[%clk 0:01:15.5]} 20. Bxc7 {[%clk 0:01:01.5]} 20... Nf4 {[%clk 0:01:07]}
21. b3 {[%clk 0:00:57.3]} 21... Bd3 {[%clk 0:01:05.4]} 0-1

[Event "Late-Titled-Tuesday-Blitz-March-26-2024"]
[Site "Chess.com"]
[Date "2024.03.26"]
[Round "11"]
[White "a_kandil"]
[Black "Zavgorodniy_Sergiy"]
[Result "0-1"]
[WhiteElo "2536"]
[BlackElo "2668"]
[TimeControl "180+1"]
[EndTime "16:02:01 PDT"]
[Termination "Zavgorodniy_Sergiy won by resignation"]

1. e4 {[%clk 0:03:00]} 1... c6 {[%clk 0:02:59.7]} 2. Nc3 {[%clk 0:02:57.1]} 2...
d5 {[%clk 0:03:00.6]} 3. Nf3 {[%clk 0:02:57.3]} 3... Bg4 {[%clk 0:03:00.2]} 4.
h3 {[%clk 0:02:57]} 4... Bxf3 {[%clk 0:03:00.3]} 5. Qxf3 {[%clk 0:02:57.9]} 5...
dxe4 {[%clk 0:03:00.9]} 6. Nxe4 {[%clk 0:02:57.4]} 6... Nd7 {[%clk 0:03:01.2]}
7. Bc4 {[%clk 0:02:56]} 7... Ne5 {[%clk 0:03:00.7]} 8. Qb3 {[%clk 0:02:50.6]}
8... Nxc4 {[%clk 0:03:00.7]} 9. Qxc4 {[%clk 0:02:51.5]} 9... Qd5 {[%clk
0:03:01]} 10. Qe2 {[%clk 0:02:44.2]} 10... e6 {[%clk 0:03:00.4]} 11. O-O {[%clk
0:02:42.3]} 11... Be7 {[%clk 0:03:00.3]} 12. d4 {[%clk 0:02:40.1]} 12... Nf6
{[%clk 0:02:57.6]} 13. Nxf6+ {[%clk 0:02:38.5]} 13... Bxf6 {[%clk 0:02:58.5]}
14. Rd1 {[%clk 0:02:38.1]} 14... O-O {[%clk 0:02:58.3]} 15. c4 {[%clk
0:02:38.1]} 15... Qf5 {[%clk 0:02:57.4]} 16. Be3 {[%clk 0:02:34.2]} 16... Rfd8
{[%clk 0:02:56.8]} 17. Rd2 {[%clk 0:02:34.6]} 17... Rd7 {[%clk 0:02:56.6]} 18.
Rad1 {[%clk 0:02:35.2]} 18... Rad8 {[%clk 0:02:56.6]} 19. Rd3 {[%clk 0:02:30.2]}
19... b5 {[%clk 0:02:55.7]} 20. b3 {[%clk 0:02:19]} 20... bxc4 {[%clk
0:02:55.3]} 21. bxc4 {[%clk 0:02:19.9]} 21... c5 {[%clk 0:02:55.8]} 22. d5
{[%clk 0:02:20.2]} 22... exd5 {[%clk 0:02:55]} 23. Bxc5 {[%clk 0:02:20.4]} 23...
Qe6 {[%clk 0:02:06]} 24. Qf3 {[%clk 0:01:52.7]} 24... d4 {[%clk 0:01:47.5]} 25.
Bxd4 {[%clk 0:01:15.6]} 25... Bxd4 {[%clk 0:01:26.7]} 26. Rxd4 {[%clk
0:01:14.1]} 26... Rxd4 {[%clk 0:01:25.7]} 27. Rxd4 {[%clk 0:01:15]} 27... Qe1+
{[%clk 0:01:24.6]} 28. Kh2 {[%clk 0:01:15.5]} 28... Qe5+ {[%clk 0:01:24.7]} 29.
Rf4 {[%clk 0:01:07.6]} 29... g5 {[%clk 0:01:23.6]} 30. g3 {[%clk 0:01:07.8]}
30... gxf4 {[%clk 0:01:21.9]} 31. Qg4+ {[%clk 0:01:06.6]} 31... Kh8 {[%clk
0:01:21]} 32. gxf4 {[%clk 0:01:07]} 32... Qg7 {[%clk 0:01:20]} 33. Qh4 {[%clk
0:01:07.2]} 33... Rg8 {[%clk 0:01:19.6]} 0-1

[Event "Late-Titled-Tuesday-Blitz-March-26-2024"]
[Site "Chess.com"]
[Date "2024.03.26"]
[Round "11"]
[White "Polish_fighter3000"]
[Black "snowlord"]
[Result "0-1"]
[WhiteElo "3110"]
[BlackElo "2996"]
[TimeControl "180+1"]
[EndTime "16:02:12 PDT"]
[Termination "snowlord won on time"]

1. e4 {[%clk 0:03:00.9]} 1... e5 {[%clk 0:02:59.9]} 2. Nf3 {[%clk 0:03:00.8]}
2... Nf6 {[%clk 0:03:00.6]} 3. Nxe5 {[%clk 0:02:56.9]} 3... d6 {[%clk 0:03:01]}
4. Nf3 {[%clk 0:02:56.4]} 4... Nxe4 {[%clk 0:03:01.4]} 5. d4 {[%clk 0:02:56.8]}
5... d5 {[%clk 0:03:01.8]} 6. Bd3 {[%clk 0:02:57.2]} 6... Bd6 {[%clk 0:03:00.8]}
7. O-O {[%clk 0:02:56.9]} 7... O-O {[%clk 0:03:01.4]} 8. c4 {[%clk 0:02:56.4]}
8... c6 {[%clk 0:03:02]} 9. Re1 {[%clk 0:02:55.2]} 9... Bf5 {[%clk 0:02:59.2]}
10. Qc2 {[%clk 0:02:49.3]} 10... Na6 {[%clk 0:02:58.4]} 11. a3 {[%clk
0:02:48.9]} 11... Bg6 {[%clk 0:02:58.6]} 12. c5 {[%clk 0:02:17.6]} 12... Bb8
{[%clk 0:02:55.8]} 13. b4 {[%clk 0:02:09.7]} 13... Nc7 {[%clk 0:02:50.7]} 14.
Nbd2 {[%clk 0:02:01.5]} 14... f5 {[%clk 0:02:39.1]} 15. Bb2 {[%clk 0:01:36.8]}
15... Ne6 {[%clk 0:02:38.9]} 16. Rad1 {[%clk 0:01:23.5]} 16... Bh5 {[%clk
0:02:37]} 17. Ra1 {[%clk 0:01:07.9]} 17... Qf6 {[%clk 0:02:36.5]} 18. Bf1 {[%clk
0:00:49.1]} 18... Bf4 {[%clk 0:02:34.5]} 19. g3 {[%clk 0:00:16.9]} 19... Bxd2
{[%clk 0:02:30.9]} 20. Nxd2 {[%clk 0:00:17.8]} 20... Nxd4 {[%clk 0:02:31.6]} 21.
Bxd4 {[%clk 0:00:15.8]} 21... Qxd4 {[%clk 0:02:32.5]} 22. Nb3 {[%clk 0:00:15.4]}
22... Qf6 {[%clk 0:02:32.4]} 23. Bg2 {[%clk 0:00:12.4]} 23... Rae8 {[%clk
0:02:32.6]} 24. f3 {[%clk 0:00:08]} 24... Ng5 {[%clk 0:02:31.9]} 25. Qd3 {[%clk
0:00:08.4]} 25... f4 {[%clk 0:02:26.9]} 26. g4 {[%clk 0:00:08.1]} 26... Bxg4
{[%clk 0:02:26.9]} 27. fxg4 {[%clk 0:00:04.6]} 27... f3 {[%clk 0:02:27.8]} 28.
Rxe8 {[%clk 0:00:04.7]} 28... Rxe8 {[%clk 0:02:27.1]} 29. Rf1 {[%clk 0:00:05.2]}
29... Qb2 {[%clk 0:01:59.7]} 30. Bxf3 {[%clk 0:00:02.7]} 30... Nh3+ {[%clk
0:02:00.2]} 31. Kh1 {[%clk 0:00:02.9]} 31... Nf2+ {[%clk 0:02:01.1]} 32. Rxf2
{[%clk 0:00:02.2]} 32... Qxf2 {[%clk 0:02:02]} 0-1

[Event "Late-Titled-Tuesday-Blitz-March-26-2024"]
[Site "Chess.com"]
[Date "2024.03.26"]
[Round "11"]
[White "Christian_Jordan"]
[Black "PNEPaul"]
[Result "0-1"]
[WhiteElo "1985"]
[BlackElo "1950"]
[TimeControl "180+1"]
[EndTime "16:02:20 PDT"]
[Termination "PNEPaul won by resignation"]

1. e4 {[%clk 0:02:56.1]} 1... e5 {[%clk 0:02:22.2]} 2. Nf3 {[%clk 0:02:53.8]}
2... Nc6 {[%clk 0:02:22]} 3. Bb5 {[%clk 0:02:52.9]} 3... f5 {[%clk 0:02:21.3]}
4. d3 {[%clk 0:02:47.8]} 4... Nf6 {[%clk 0:02:21]} 5. O-O {[%clk 0:02:27.6]}
5... Be7 {[%clk 0:02:20.5]} 6. Nc3 {[%clk 0:02:25.6]} 6... O-O {[%clk
0:02:19.8]} 7. Bxc6 {[%clk 0:02:16.3]} 7... dxc6 {[%clk 0:02:19.6]} 8. Nxe5
{[%clk 0:02:04.5]} 8... fxe4 {[%clk 0:02:17.8]} 9. dxe4 {[%clk 0:01:53.9]} 9...
Bd6 {[%clk 0:02:17.1]} 10. f4 {[%clk 0:01:43.1]} 10... Bxe5 {[%clk 0:02:11.9]}
11. Qxd8 {[%clk 0:01:33.4]} 11... Rxd8 {[%clk 0:02:09.8]} 12. fxe5 {[%clk
0:01:33.1]} 12... Ng4 {[%clk 0:02:01.8]} 13. Bf4 {[%clk 0:01:30.4]} 13... Re8
{[%clk 0:01:58.8]} 14. Rad1 {[%clk 0:01:29.7]} 14... Be6 {[%clk 0:01:53.9]} 15.
h3 {[%clk 0:01:27.7]} 15... Bc4 {[%clk 0:01:48]} 16. Rf3 {[%clk 0:01:20.5]}
16... Nxe5 {[%clk 0:01:45.6]} 17. Bxe5 {[%clk 0:01:19.3]} 17... Rxe5 {[%clk
0:01:44.9]} 18. b3 {[%clk 0:01:19.3]} 18... Be6 {[%clk 0:01:36.8]} 19. Kf2
{[%clk 0:01:15.8]} 19... Rf8 {[%clk 0:01:29.3]} 20. Ke3 {[%clk 0:01:14]} 20...
Rxf3+ {[%clk 0:01:28.1]} 21. Kxf3 {[%clk 0:01:14.1]} 21... Rc5 {[%clk
0:01:16.9]} 22. Rd3 {[%clk 0:01:08.1]} 22... Kf7 {[%clk 0:01:15.8]} 23. Ke3
{[%clk 0:01:04.9]} 23... Rg5 {[%clk 0:01:02.7]} 24. Rd2 {[%clk 0:01:01.1]} 24...
Rg3+ {[%clk 0:00:54.9]} 0-1

[Event "Late-Titled-Tuesday-Blitz-March-26-2024"]
[Site "Chess.com"]
[Date "2024.03.26"]
[Round "11"]
[White "Oleksandr_Bortnyk"]
[Black "GMKrikor"]
[Result "1-0"]
[WhiteElo "3037"]
[BlackElo "2833"]
[TimeControl "180+1"]
[EndTime "16:02:24 PDT"]
[Termination "Oleksandr_Bortnyk won on time"]

1. e4 {[%clk 0:03:00.9]} 1... c5 {[%clk 0:02:59.8]} 2. Be2 {[%clk 0:03:00.2]}
2... Nc6 {[%clk 0:02:51]} 3. d3 {[%clk 0:02:59.4]} 3... e6 {[%clk 0:02:44.3]} 4.
f4 {[%clk 0:03:00.3]} 4... d5 {[%clk 0:02:43.1]} 5. Nf3 {[%clk 0:03:01.2]} 5...
Nf6 {[%clk 0:02:41.7]} 6. e5 {[%clk 0:03:01.5]} 6... Ng8 {[%clk 0:02:42.1]} 7.
c3 {[%clk 0:03:02.3]} 7... h5 {[%clk 0:02:41.5]} 8. O-O {[%clk 0:03:01.5]} 8...
Nh6 {[%clk 0:02:41.9]} 9. d4 {[%clk 0:03:00.5]} 9... Nf5 {[%clk 0:02:42.1]} 10.
Bd3 {[%clk 0:02:58.3]} 10... Qb6 {[%clk 0:02:33.6]} 11. Bxf5 {[%clk 0:02:57.5]}
11... exf5 {[%clk 0:02:34.5]} 12. Rf2 {[%clk 0:02:55.1]} 12... Be6 {[%clk
0:02:29.3]} 13. Be3 {[%clk 0:02:55.3]} 13... c4 {[%clk 0:02:17.7]} 14. Nbd2
{[%clk 0:02:52.9]} 14... Qd8 {[%clk 0:01:46.9]} 15. b3 {[%clk 0:02:52.3]} 15...
b5 {[%clk 0:01:47.3]} 16. a4 {[%clk 0:02:51.5]} 16... b4 {[%clk 0:01:02.5]} 17.
cxb4 {[%clk 0:02:36.7]} 17... c3 {[%clk 0:01:02.2]} 18. Nb1 {[%clk 0:02:37.1]}
18... Bxb4 {[%clk 0:00:59.9]} 19. Rc2 {[%clk 0:02:35.9]} 19... Na5 {[%clk
0:00:59.2]} 20. Nxc3 {[%clk 0:02:35.7]} 20... O-O {[%clk 0:00:41.8]} 21. Ng5
{[%clk 0:02:32.2]} 21... g6 {[%clk 0:00:40.1]} 22. Nxe6 {[%clk 0:02:30.7]} 22...
fxe6 {[%clk 0:00:39.9]} 23. Nb5 {[%clk 0:02:31.1]} 23... Rf7 {[%clk 0:00:28]}
24. Rac1 {[%clk 0:02:30.7]} 24... Rb8 {[%clk 0:00:15.1]} 25. Nc7 {[%clk
0:02:31]} 25... Qd7 {[%clk 0:00:10.6]} 26. Na6 {[%clk 0:02:31.6]} 26... Rb6
{[%clk 0:00:08.5]} 27. Rc7 {[%clk 0:02:16.2]} 27... Rxa6 {[%clk 0:00:08.3]} 28.
Rxd7 {[%clk 0:02:16.5]} 28... Rxd7 {[%clk 0:00:09.2]} 29. Rc8+ {[%clk
0:02:15.4]} 29... Kf7 {[%clk 0:00:08.4]} 30. Qc2 {[%clk 0:02:15.2]} 30... Rb6
{[%clk 0:00:07.5]} 31. Bd2 {[%clk 0:01:53.8]} 31... Bxd2 {[%clk 0:00:06]} 32.
Qxd2 {[%clk 0:01:54.7]} 32... Nxb3 {[%clk 0:00:02]} 33. Qc3 {[%clk 0:01:54.5]}
33... a5 {[%clk 0:00:01.4]} 34. Rh8 {[%clk 0:01:51.4]} 1-0